fUSD/lending_fUSD_20240713
["ID","MTS","AMOUNT","RATE_DAILY","PERIOD"]
[331959446,1720899047553,-3877.46310139,0.00014,2]
[331959447,1720899047565,-650.09,0.00014,2]
[331959448,1720899047577,-304.54837448,0.00014,2]
[331959449,1720899047588,-611.967,0.00014,2]
[331959450,1720899047603,-53190.04953092,0.00014,2]
[331959451,1720899047615,-71309.18045243,0.00014,2]
[331959452,1720899047626,-1346.35809449,0.00014,2]
[331959453,1720899047637,-8027.63642451,0.00014,2]
[331959454,1720899047648,-359.48610645,0.00014,2]
[331959455,1720899047660,-1793.87083348,0.00014,2]
[331959456,1720899047674,-453.46218221,0.00014,2]
[331959460,1720899153348,569.19,0.00010923,2]
[331959472,1720899239841,11419.09590918,0.00011199,2]
[331959473,1720899325236,2023.26638176,0.00011199,2]
[331959474,1720899331587,1322.6467692,0.00011199,2]
[331959479,1720899449831,613.59605607,0.00011199,2]
[331959481,1720899625754,521.01537596,0.00011199,2]
[331959483,1720899745096,540.73,0.000109,2]
[331959485,1720899891290,251.81312797,0.00011199,2]
[331959582,1720900171539,-406.26864507,0.0001126,2]
[331959597,1720900232574,-93.73135493,0.0001126,2]
[331959598,1720900232584,-173.5025802,0.0001126,2]
[331959599,1720900232628,-326.4974198,0.0001126,2]
[331959600,1720900232638,-287.33223388,0.00012273,2]
[331959601,1720900232647,-250.0,0.00012801,2]
[331959602,1720900232656,-202.93,0.00012801,2]
[331959603,1720900232666,-583.52670074,0.00012815,2]
[331959604,1720900232690,-416.47329926,0.00012815,2]
[331959605,1720900232699,-250.0,0.00012816,2]
[331959606,1720900232708,-500.0,0.00012904,2]
[331959607,1720900232718,-300.0,0.00012999,2]
[331959608,1720900232727,-1317.36371707,0.00013,2]
[331959609,1720900232738,-1572.82495648,0.00013,2]
[331959610,1720900232787,-4087.53372105,0.00013,2]
[331959618,1720900238251,-537.3751562,0.00013,2]
[331959619,1720900238307,-4488.32092168,0.00013,2]
[331959620,1720900238319,-1240.2756,0.00013,2]
[331959621,1720900238362,-317.09037781,0.00013,2]
[331959622,1720900238374,-300.11965555,0.00013,2]
[331959623,1720900238386,-1522.57839701,0.00013,2]
[331959624,1720900238418,-3200.76932498,0.00013,2]
[331959625,1720900238428,-1250.0,0.00013,2]
[331959626,1720900238438,-182.79,0.0001309,2]
[331959627,1720900238447,-150.99,0.00013164,2]
[331959628,1720900238457,-540.73,0.00013164,2]
[331959629,1720900238467,-150.0,0.00013199,2]
[331959630,1720900238477,-355.29,0.000132,2]
[331959631,1720900238486,-1063.01,0.000132,2]
[331959632,1720900238496,-150.0,0.000132,2]
[331959633,1720900238505,-1965.451094,0.00013396,2]
[331959634,1720900238515,-49.93852973,0.00013396,2]
[331959635,1720900238575,-114.25841327,0.00013396,2]
[331959636,1720900238585,-161.593073,0.00013396,2]
[331959637,1720900238594,-170.979057,0.00013396,2]
[331959638,1720900238603,-982.725547,0.00013396,2]
[331959639,1720900238613,-200.919141,0.00013396,2]
[331959640,1720900238622,-150.245854,0.00013396,2]
[331959641,1720900238631,-518.0,0.00013448,2]
[331959642,1720900238641,-1965.451094,0.00013563,2]
[331959643,1720900238650,-982.725547,0.00013563,2]
[331959644,1720900238659,-150.245854,0.00013619,2]
[331959645,1720900238670,-461.36,0.0001365,2]
[331959646,1720900238679,-201.36,0.00013699,2]
[331959647,1720900238689,-200.0,0.00013699,2]
[331959649,1720900238699,-273.39,0.00013699,2]
[331959651,1720900238708,-199.95629179,0.00013699,2]
[331959825,1720900240306,-50.04370821,0.00013699,2]
[331959827,1720900240317,-251.97,0.00013699,2]
[331959830,1720900240327,-197.98629179,0.00013699,2]
[331959844,1720900240465,-502.16280821,0.00013699,2]
[331959846,1720900240475,-200.0,0.0001372,2]
[331959848,1720900240487,-150.0,0.00013729,2]
[331959850,1720900240497,-171.08719179,0.00013731,2]
[331959853,1720900240518,-1637.99825234,0.00013731,2]
[331959855,1720900240530,-156.36564987,0.00013731,2]
[331959857,1720900240540,-918.18435013,0.00013731,2]
[331959861,1720900240573,-64.54119687,0.00013731,2]
[331959863,1720900240583,-150.0,0.00013732,2]
[331959865,1720900240592,-150.0,0.00013733,2]
[331959867,1720900240601,-150.0,0.00013739,2]
[331959869,1720900240610,-150.0,0.00013743,2]
[331959871,1720900240619,-150.0,0.00013744,2]
[331959873,1720900240629,-150.0,0.00013746,2]
[331959875,1720900240638,-150.0,0.00013748,2]
[331959876,1720900240647,-150.0,0.00013753,2]
[331959878,1720900240656,-150.0,0.00013756,2]
[331959880,1720900240666,-150.0,0.00013757,2]
[331959882,1720900240675,-1322.6467692,0.00013759,2]
[331959884,1720900240685,-150.0,0.00013759,2]
[331959886,1720900240694,-150.0,0.00013766,2]
[331959888,1720900240703,-150.0,0.0001377,2]
[331959890,1720900240713,-150.0,0.0001377,2]
[331959892,1720900240724,-150.0,0.00013773,2]
[331959894,1720900240734,-150.0,0.00013774,2]
[331959896,1720900240744,-150.0,0.00013774,2]
[331959898,1720900240757,-150.0,0.0001378,2]
[331959900,1720900240770,-150.0,0.00013782,2]
[331959902,1720900240779,-150.0,0.00013794,2]
[331959904,1720900240788,-150.0,0.00013796,2]
[331959906,1720900240797,-500.0,0.00013799,2]
[331959908,1720900240808,-500.0,0.00013799,2]
[331959910,1720900240818,-500.0,0.00013799,2]
[331959913,1720900240831,-571.45,0.00013799,2]
[331959915,1720900240843,-500.0,0.00013799,2]
[331959917,1720900240853,-505.51,0.00013799,2]
[331959919,1720900240864,-573.81,0.00013799,2]
[331959921,1720900240873,-500.0,0.00013799,2]
[331959923,1720900240883,-500.0,0.00013799,2]
[331959925,1720900240893,-647.6,0.00013799,2]
[331959927,1720900240904,-500.0,0.00013799,2]
[331959929,1720900240914,-500.0,0.00013799,2]
[331959931,1720900240924,-500.0,0.00013799,2]
[331959933,1720900240933,-517.07,0.00013799,2]
[331959935,1720900240942,-500.0,0.00013799,2]
[331959937,1720900240953,-650.56,0.00013799,2]
[331959939,1720900240963,-500.0,0.00013799,2]
[331959941,1720900240973,-603.49,0.00013799,2]
[331959943,1720900240982,-500.0,0.00013799,2]
[331959945,1720900240992,-150.0,0.00013799,2]
[331959947,1720900241002,-500.0,0.00013799,2]
[331959949,1720900241012,-500.0,0.00013799,2]
[331959951,1720900241022,-500.0,0.00013799,2]
[331959953,1720900241031,-500.0,0.00013799,2]
[331959956,1720900241041,-500.0,0.00013799,2]
[331959958,1720900241052,-500.0,0.00013799,2]
[331959960,1720900241063,-500.0,0.00013799,2]
[331959962,1720900241072,-500.0,0.00013799,2]
[331959964,1720900241081,-500.0,0.00013799,2]
[331959966,1720900241090,-500.0,0.00013799,2]
[331959968,1720900241100,-500.0,0.00013799,2]
[331959970,1720900241109,-500.0,0.00013799,2]
[331959972,1720900241119,-150.0,0.00013804,2]
[331959974,1720900241128,-150.0,0.00013808,2]
[331959976,1720900241138,-150.0,0.00013813,2]
[331959978,1720900241148,-150.0,0.00013824,2]
[331959980,1720900241157,-150.0,0.00013824,2]
[331959982,1720900241167,-150.0,0.00013825,2]
[331959984,1720900241176,-150.0,0.00013827,2]
[331959985,1720900241185,-150.0,0.0001383,2]
[331959987,1720900241194,-150.0,0.0001383,2]
[331959989,1720900241203,-150.0,0.00013832,2]
[331959991,1720900241212,-150.0,0.00013832,2]
[331959993,1720900241223,-150.0,0.00013833,2]
[331959995,1720900241233,-150.0,0.00013834,2]
[331959997,1720900241242,-150.0,0.00013834,2]
[331959999,1720900241253,-150.0,0.00013834,2]
[331960014,1720900241418,-150.0,0.00013841,2]
[331960015,1720900241427,-150.245854,0.00013843,2]
[331960016,1720900241438,-150.0,0.00013843,2]
[331960017,1720900241450,-150.0,0.00013844,2]
[331960019,1720900241460,-150.0,0.00013845,2]
[331960021,1720900241470,-150.0,0.00013849,2]
[331960023,1720900241479,-150.0,0.00013852,2]
[331960025,1720900241492,-150.0,0.00013853,2]
[331960027,1720900241501,-500.0,0.00013854,2]
[331960029,1720900241510,-500.0,0.00013854,2]
[331960031,1720900241520,-571.45,0.00013854,2]
[331960033,1720900241529,-500.0,0.00013854,2]
[331960035,1720900241538,-505.51,0.00013854,2]
[331960037,1720900241547,-573.81,0.00013854,2]
[331960039,1720900241557,-500.0,0.00013854,2]
[331960041,1720900241566,-647.6,0.00013854,2]
[331960043,1720900241575,-500.0,0.00013854,2]
[331960045,1720900241584,-500.0,0.00013854,2]
[331960047,1720900241593,-500.0,0.00013854,2]
[331960049,1720900241602,-517.07,0.00013854,2]
[331960051,1720900241611,-237.50196175,0.00013854,2]
[331960053,1720900241621,-650.56,0.00013854,2]
[331960055,1720900241630,-500.0,0.00013854,2]
[331960058,1720900241640,-603.49,0.00013854,2]
[331960060,1720900241650,-500.0,0.00013854,2]
[331960062,1720900241660,-150.0,0.00013854,2]
[331960064,1720900241669,-500.0,0.00013854,2]
[331960066,1720900241678,-500.0,0.00013854,2]
[331960068,1720900241687,-500.0,0.00013854,2]
[331960070,1720900241696,-500.0,0.00013854,2]
[331960071,1720900241705,-500.0,0.00013854,2]
[331960073,1720900241715,-500.0,0.00013854,2]
[331960075,1720900241724,-220.15661265,0.00013854,2]
[331960077,1720900241736,-279.84338735,0.00013854,2]
[331960079,1720900241746,-500.0,0.00013854,2]
[331960081,1720900241755,-500.0,0.00013854,2]
[331960083,1720900241768,-500.0,0.00013854,2]
[331960085,1720900241777,-500.0,0.00013854,2]
[331960087,1720900241787,-500.0,0.00013854,2]
[331960089,1720900241796,-150.0,0.00013856,2]
[331960091,1720900241807,-150.0,0.00013856,2]
[331960093,1720900241817,-150.0,0.00013857,2]
[331960095,1720900241831,-150.0,0.00013857,2]
[331960097,1720900241841,-150.0,0.00013859,2]
[331960099,1720900241850,-150.0,0.00013859,2]
[331960101,1720900241859,-200.0,0.0001386,2]
[331960103,1720900241868,-200.0,0.0001386,2]
[331960105,1720900241877,-500.0,0.0001386,2]
[331960107,1720900241886,-150.0,0.00013862,2]
[331960109,1720900241895,-150.0,0.00013863,2]
[331960111,1720900241906,-150.0,0.00013863,2]
[331960113,1720900241915,-150.0,0.00013866,2]
[331960115,1720900241924,-150.0,0.0001387,2]
[331960117,1720900241933,-150.0,0.00013871,2]
[331960119,1720900241943,-150.0,0.00013873,2]
[331960121,1720900241953,-150.0,0.00013876,2]
[331960122,1720900241962,-150.0,0.00013876,2]
[331960124,1720900241972,-150.0,0.00013879,2]
[331960126,1720900241981,-150.0,0.00013885,2]
[331960128,1720900241990,-500.0,0.00013888,2]
[331960130,1720900242000,-200.0,0.00013888,2]
[331960132,1720900242010,-150.0,0.00013888,2]
[331960135,1720900242021,-150.0,0.0001389,2]
[331960136,1720900242031,-24103.0051,0.0001389,2]
[331960138,1720900242043,-150.0,0.00013891,2]
[331960140,1720900242053,-150.0,0.00013891,2]
[331960142,1720900242064,-150.0,0.00013897,2]
[331960145,1720900242074,-150.0,0.00013897,2]
[331960147,1720900242083,-150.0,0.00013897,2]
[331960148,1720900242092,-364.74283042,0.00013897,2]
[331960150,1720900242102,-1965.451094,0.00013898,2]
[331960152,1720900242111,-982.725547,0.00013898,2]
[331960154,1720900242120,-3436.13708627,0.00013899,2]
[331960157,1720900242132,-6563.86291373,0.00013899,2]
[331960159,1720900242141,-1251.2596,0.000139,2]
[331960161,1720900242150,-13486.9478,0.000139,2]
[331960163,1720900242159,-686.39093517,0.000139,2]
[331960165,1720900242169,-150.0,0.00013901,2]
[331960167,1720900242178,-500.0,0.00013909,2]
[331960169,1720900242187,-236.95,0.00013909,2]
[331960171,1720900242197,-571.45,0.00013909,2]
[331960173,1720900242206,-500.0,0.00013909,2]
[331960175,1720900242216,-505.51,0.00013909,2]
[331960177,1720900242227,-573.81,0.00013909,2]
[331960179,1720900242236,-500.0,0.00013909,2]
[331960181,1720900242245,-647.6,0.00013909,2]
[331960183,1720900242257,-500.0,0.00013909,2]
[331960185,1720900242267,-500.0,0.00013909,2]
[331960188,1720900242278,-500.0,0.00013909,2]
[331960190,1720900242288,-517.07,0.00013909,2]
[331960192,1720900242298,-650.56,0.00013909,2]
[331960194,1720900242308,-500.0,0.00013909,2]
[331960196,1720900242319,-603.49,0.00013909,2]
[331960198,1720900242329,-500.0,0.00013909,2]
[331960200,1720900242341,-500.0,0.00013909,2]
[331960203,1720900242351,-500.0,0.00013909,2]
[331960205,1720900242361,-500.0,0.00013909,2]
[331960207,1720900242372,-500.0,0.00013909,2]
[331960209,1720900242382,-500.0,0.00013909,2]
[331960211,1720900242393,-500.0,0.00013909,2]
[331960213,1720900242403,-500.0,0.00013909,2]
[331960215,1720900242412,-500.0,0.00013909,2]
[331960217,1720900242423,-500.0,0.00013909,2]
[331960219,1720900242433,-500.0,0.00013909,2]
[331960221,1720900242443,-500.0,0.00013909,2]
[331960223,1720900242452,-500.0,0.00013909,2]
[331960225,1720900242462,-150.0,0.00013911,2]
[331960227,1720900242474,-150.0,0.00013911,2]
[331960229,1720900242483,-150.0,0.00013914,2]
[331960231,1720900242492,-150.0,0.00013915,2]
[331960233,1720900242501,-150.0,0.00013917,2]
[331960236,1720900242513,-150.0,0.00013918,2]
[331960238,1720900242524,-586.0,0.0001392,2]
[331960240,1720900242534,-150.0,0.0001392,2]
[331960242,1720900242544,-150.0,0.00013922,2]
[331960244,1720900242555,-150.0,0.00013932,2]
[331960246,1720900242566,-150.0,0.00013935,2]
[331960248,1720900242577,-150.0,0.00013937,2]
[331960251,1720900242588,-150.0,0.00013945,2]
[331960253,1720900242597,-150.0,0.0001395,2]
[331960255,1720900242607,-150.0,0.00013951,2]
[331960257,1720900242617,-150.0,0.00013955,2]
[331960259,1720900242626,-150.0,0.00013955,2]
[331960261,1720900242635,-150.0,0.00013955,2]
[331960263,1720900242645,-150.0,0.00013957,2]
[331960265,1720900242655,-150.0,0.00013957,2]
[331960267,1720900242664,-500.0,0.00013964,2]
[331960269,1720900242674,-571.45,0.00013964,2]
[331960271,1720900242683,-500.0,0.00013964,2]
[331960273,1720900242692,-505.51,0.00013964,2]
[331960275,1720900242701,-573.81,0.00013964,2]
[331960277,1720900242710,-500.0,0.00013964,2]
[331960279,1720900242721,-647.6,0.00013964,2]
[331960281,1720900242730,-500.0,0.00013964,2]
[331960283,1720900242739,-500.0,0.00013964,2]
[331960285,1720900242749,-330.06523929,0.00013964,2]
[331960287,1720900242764,-169.93476071,0.00013964,2]
[331960289,1720900242774,-517.07,0.00013964,2]
[331960291,1720900242782,-650.56,0.00013964,2]
[331960293,1720900242791,-500.0,0.00013964,2]
[331960295,1720900242800,-603.49,0.00013964,2]
[331960297,1720900242811,-500.0,0.00013964,2]
[331960299,1720900242821,-500.0,0.00013964,2]
[331960301,1720900242831,-500.0,0.00013964,2]
[331960303,1720900242843,-500.0,0.00013964,2]
[331960305,1720900242852,-500.0,0.00013964,2]
[331960307,1720900242861,-500.0,0.00013964,2]
[331960309,1720900242871,-500.0,0.00013964,2]
[331960311,1720900242879,-500.0,0.00013964,2]
[331960313,1720900242889,-500.0,0.00013964,2]
[331960315,1720900242898,-500.0,0.00013964,2]
[331960317,1720900242908,-500.0,0.00013964,2]
[331960319,1720900242918,-500.0,0.00013964,2]
[331960321,1720900242928,-500.0,0.00013964,2]
[331960324,1720900242938,-150.0,0.00013976,2]
[331960326,1720900242948,-150.0,0.00013976,2]
[331960328,1720900242960,-150.0,0.00013983,2]
[331960330,1720900242970,-150.0,0.00013983,2]
[331960332,1720900242980,-200.0,0.0001399,2]
[331960334,1720900242989,-200.0,0.0001399,2]
[331960336,1720900242999,-150.0,0.0001399,2]
[331960338,1720900243010,-150.0,0.00013991,2]
[331960341,1720900243021,-150.0,0.00013993,2]
[331960343,1720900243032,-150.0,0.00013995,2]
[331960345,1720900243041,-150.0,0.00013997,2]
[331960347,1720900243051,-150.0,0.00013998,2]
[331960349,1720900243059,-286.20532406,0.00013999,2]
[331960351,1720900243070,-5249.65232639,0.00013999,2]
[331960353,1720900243083,-350.54499987,0.00013999,2]
[331960454,1720900244516,-150.0,0.0001374,2]
[331960455,1720900244525,-150.0,0.00013798,2]
[331960457,1720900244534,-331.95014678,0.00013999,2]
[331960459,1720900244544,-500.0,0.00013999,2]
[331960461,1720900244554,-500.52525239,0.00013999,2]
[331960463,1720900244562,-500.0,0.00013999,2]
[331960464,1720900244572,-500.0,0.00013999,2]
[331960466,1720900244581,-500.0,0.00013999,2]
[331960468,1720900244591,-500.0,0.00013999,2]
[331960469,1720900244601,-544.98,0.00013999,2]
[331960471,1720900244611,-500.0,0.00013999,2]
[331960473,1720900244621,-500.0,0.00013999,2]
[331960475,1720900244631,-500.0,0.00013999,2]
[331960477,1720900244640,-500.0,0.00013999,2]
[331960479,1720900244650,-500.0,0.00013999,2]
[331960480,1720900244660,-500.0,0.00013999,2]
[331960482,1720900244669,-500.0,0.00013999,2]
[331960484,1720900244679,-502.69,0.00013999,2]
[331960486,1720900244688,-764.22,0.00013999,2]
[331960488,1720900244698,-500.0,0.00013999,2]
[331960489,1720900244707,-1725.62,0.00013999,2]
[331960491,1720900244717,-300.0,0.00013999,2]
[331960493,1720900244735,-300.0,0.00013999,2]
[331960495,1720900244745,-500.0,0.00013999,2]
[331960497,1720900244756,-500.0,0.00013999,2]
[331960499,1720900244772,-500.0,0.00013999,2]
[331960501,1720900244781,-500.0,0.00013999,2]
[331960503,1720900244790,-500.0,0.00013999,2]
[331960504,1720900244800,-500.0,0.00013999,2]
[331960506,1720900244811,-500.0,0.00013999,2]
[331960508,1720900244820,-500.0,0.00013999,2]
[331960510,1720900244830,-364.77165495,0.00013999,2]
[331960512,1720900244839,-500.0,0.00013999,2]
[331960513,1720900244849,-690.6,0.00013999,2]
[331960515,1720900244858,-400.0,0.00013999,2]
[331960517,1720900244868,-617.4361884,0.00013999,2]
[331960519,1720900244878,-508.95,0.00013999,2]
[331960521,1720900244887,-9912.87475748,0.00014,2]
[331960523,1720900244904,-825.45,0.00014,2]
[331960525,1720900244915,-2804.45,0.00014,2]
[331960527,1720900244931,-3495.15644901,0.00014,2]
[331960668,1720900246414,-7769.64315569,0.00014,2]
[331960680,1720900246520,-35399.41738254,0.00014,2]
[331960703,1720900246732,-3001.3,0.00014,2]
[331961155,1720900536768,1622.92961523,0.00011199,2]
[331961157,1720900549920,1068.17018491,0.00011199,2]
[331961162,1720900650647,157.5073195,0.00011199,2]
[331961163,1720900671826,520.84431968,0.00011199,2]
[331961166,1720900695341,163.54281269,0.00011199,2]
[331961170,1720900822632,533.1,0.00010934,2]
[331961175,1720901127417,90292.07763899,0.00010934,2]
[331961258,1720901376194,528.47,0.00010839,2]
[331961267,1720901404971,3795.21437752,0.00011199,2]
[331961268,1720901405009,1147.90157651,0.00011199,2]
[331961269,1720901424072,891.83072894,0.00011199,2]
[331961270,1720901427920,1265.84016916,0.00011199,2]
[331961275,1720901431589,-254.68592052,0.0001126,2]
[331961276,1720901431600,-245.31407948,0.0001126,2]
[331961277,1720901431609,-150.0,0.000126,2]
[331961278,1720901431619,-175.95,0.00012758,2]
[331961279,1720901431628,-139.87864266,0.00012778,2]
[331961280,1720901431695,-360.12135734,0.00012778,2]
[331961281,1720901431704,-800.0,0.00012787,2]
[331961282,1720901431714,-182.79,0.00012837,2]
[331961283,1720901431723,-442.76,0.00012848,2]
[331961284,1720901431900,-200.0,0.00012854,2]
[331961285,1720901431910,-250.0,0.00012855,2]
[331961286,1720901431920,-171.76,0.00012858,2]
[331961287,1720901431930,-500.0,0.00012904,2]
[331961288,1720901431939,-529.13,0.00013,2]
[331961289,1720901431949,-103.25446451,0.00013103,2]
[331961290,1720901431961,-425.21553549,0.00013103,2]
[331961291,1720901431971,-339.390734,0.00013128,2]
[331961292,1720901431987,-664.8094601,0.00013128,2]
[331961293,1720901431996,-251.95136051,0.00013138,2]
[331961294,1720901432006,-196.12854204,0.00013138,2]
[331961295,1720901432015,-529.13,0.000132,2]
[331961296,1720901432024,-303.57,0.000132,2]
[331961297,1720901432033,-1049.84,0.000133,2]
[331961298,1720901432042,-69.85842153,0.00013396,2]
[331961319,1720901437614,-105.73753847,0.00013396,2]
[331961320,1720901437624,-492.01746153,0.000134,2]
[331961321,1720901437636,-37.11253847,0.000134,2]
[331961322,1720901437646,-1568.86746153,0.00013552,2]
[331961323,1720901437659,-620.76253847,0.00013552,2]
[331961324,1720901437671,-3932.79,0.00013552,2]
[331961325,1720901437681,-303.0,0.00013584,2]
[331961326,1720901437692,-164.07,0.000136,2]
[331961327,1720901437704,-258.98,0.00013699,2]
[331961328,1720901437715,-251.97,0.00013699,2]
[331961329,1720901437725,-364.74283042,0.00013711,2]
[331961330,1720901437734,-150.0,0.00013728,2]
[331961331,1720901437744,-150.0,0.00013729,2]
[331961332,1720901437755,-150.0,0.00013729,2]
[331961333,1720901437764,-150.0,0.0001373,2]
[331961334,1720901437773,-150.0,0.00013731,2]
[331961335,1720901437783,-150.0,0.00013736,2]
[331961336,1720901437793,-150.0,0.00013742,2]
[331961337,1720901437802,-150.0,0.00013745,2]
[331961338,1720901437811,-150.0,0.00013746,2]
[331961339,1720901437821,-150.0,0.00013747,2]
[331961340,1720901437830,-150.0,0.00013754,2]
[331961341,1720901437839,-150.0,0.00013759,2]
[331961342,1720901437849,-300.0,0.0001376,2]
[331961343,1720901437858,-9.35375151,0.00013762,2]
[331961344,1720901437870,-177.03505692,0.00013762,2]
[331961345,1720901437879,-150.0,0.00013764,2]
[331961346,1720901437889,-150.0,0.00013766,2]
[331961347,1720901437899,-150.0,0.00013772,2]
[331961348,1720901437908,-150.0,0.00013774,2]
[331961349,1720901437917,-150.0,0.00013777,2]
[331961350,1720901437928,-150.0,0.00013777,2]
[331961351,1720901437938,-150.0,0.00013783,2]
[331961352,1720901437947,-150.0,0.00013785,2]
[331961353,1720901437957,-150.0,0.00013785,2]
[331961354,1720901437966,-150.0,0.00013788,2]
[331961355,1720901437975,-150.0,0.00013791,2]
[331961356,1720901437984,-150.0,0.00013792,2]
[331961357,1720901437993,-150.0,0.00013795,2]
[331961358,1720901438003,-150.0,0.000138,2]
[331961359,1720901438013,-150.0,0.00013802,2]
[331961360,1720901438022,-150.0,0.00013807,2]
[331961361,1720901438031,-150.0,0.00013808,2]
[331961362,1720901438040,-150.0,0.0001381,2]
[331961363,1720901438049,-150.0,0.0001381,2]
[331961364,1720901438059,-529.13,0.0001381,2]
[331961365,1720901438068,-531.93,0.0001381,2]
[331961366,1720901438078,-150.0,0.00013816,2]
[331961367,1720901438091,-150.0,0.00013818,2]
[331961368,1720901438102,-150.0,0.00013824,2]
[331961369,1720901438113,-150.0,0.00013826,2]
[331961370,1720901438123,-150.0,0.00013826,2]
[331961371,1720901438134,-150.0,0.00013828,2]
[331961372,1720901438145,-150.0,0.00013828,2]
[331961373,1720901438154,-150.0,0.00013828,2]
[331961374,1720901438164,-150.0,0.00013828,2]
[331961375,1720901438174,-150.0,0.00013832,2]
[331961376,1720901438184,-150.0,0.00013839,2]
[331961377,1720901438200,-150.0,0.0001384,2]
[331961378,1720901438210,-150.0,0.00013845,2]
[331961379,1720901438219,-150.0,0.00013847,2]
[331961380,1720901438230,-150.0,0.00013851,2]
[331961381,1720901438242,-150.0,0.00013853,2]
[331961382,1720901438252,-150.0,0.00013858,2]
[331961383,1720901438262,-150.0,0.00013858,2]
[331961384,1720901438273,-895.20781516,0.0001386,2]
[331961385,1720901438285,-150.0,0.0001386,2]
[331961386,1720901438295,-150.0,0.0001386,2]
[331961387,1720901438309,-150.0,0.00013861,2]
[331961388,1720901438320,-94.91712792,0.00013865,2]
[331961516,1720901439564,-55.08287208,0.00013865,2]
[331961518,1720901439573,-150.0,0.00013867,2]
[331961520,1720901439583,-150.0,0.00013869,2]
[331961522,1720901439592,-150.0,0.00013873,2]
[331961524,1720901439601,-150.0,0.00013874,2]
[331961525,1720901439610,-150.0,0.00013875,2]
[331961527,1720901439619,-150.0,0.00013876,2]
[331961529,1720901439629,-150.0,0.00013878,2]
[331961532,1720901439638,-150.0,0.00013882,2]
[331961534,1720901439647,-150.0,0.00013885,2]
[331961536,1720901439657,-150.0,0.00013886,2]
[331961538,1720901439666,-500.0,0.00013887,2]
[331961540,1720901439676,-150.0,0.00013887,2]
[331961542,1720901439685,-150.0,0.00013887,2]
[331961544,1720901439694,-500.0,0.00013888,2]
[331961546,1720901439703,-150.0,0.00013889,2]
[331961548,1720901439713,-150.0,0.00013894,2]
[331961550,1720901439722,-150.0,0.00013896,2]
[331961552,1720901439732,-351.88844729,0.00013898,2]
[331961554,1720901439741,-150.0,0.00013898,2]
[331961556,1720901439750,-242.26098646,0.00013899,2]
[331961558,1720901439762,-277.6531496,0.00013899,2]
[331961627,1720901440402,-491.31000015,0.00013899,2]
[331961634,1720901440458,-4837.95670771,0.00013899,2]
[331961636,1720901440469,-1230.11798227,0.00013899,2]
[331961650,1720901440668,-8317.15844635,0.00013899,2]
[331961652,1720901440680,-3531.74762746,0.00013899,2]
[331961654,1720901440689,-2438.0496,0.00013899,2]
[331961656,1720901440698,-338.7468,0.000139,2]
[331961658,1720901440708,-488.8288,0.000139,2]
[331961660,1720901440717,-1000.0,0.000139,2]
[331961662,1720901440726,-713.7506,0.000139,2]
[331961663,1720901440735,-322.24176037,0.000139,2]
[331961665,1720901440744,-2500.0,0.000139,2]
[331961667,1720901440753,-2500.0,0.000139,2]